Cogmind - Beta 17.1 @@@ ROGUE MODE // 2026.08.29 @ 00:18:32 Player: Finn Result: Destroyed by Y-45 Defender with Beam Rifle Performance ------------- Evolutions (2) 1000 Regions Visited (7) 1400 Robots Destroyed (29) 145 Value Destroyed (620) 620 Prototype IDs (0) 0 Alien Tech Used (0) 0 Bonus (28) 28 TOTAL SCORE: 3193 Bonus ------- Follower Combat Kills 28 Cogmind --------- Core Integrity 0/550 Matter 175/300 Energy 60/100 System Corruption 0% Temperature Cool (74) Movement Core (50) Location -8/Materials Parts ------- > --- POWER (2) -------- (None) > --- PROPULSION (4) --- (None) > --- UTILITY (3) ------ Power Shielding > --- WEAPON (2) ------- (None) > --- INVENTORY (5) ---- Flight Unit Flight Unit Peak State ------------ > --- POWER ------------ Light Ion Engine > --- PROPULSION ------- Flight Unit Flight Unit Flight Unit Flight Unit > --- UTILITY ---------- Terrain Scanner Reaction Control System Power Shielding > --- WEAPON ----------- EM Shotgun > --- INVENTORY -------- Flight Unit Flight Unit Flight Unit Grenade Launcher [Rating: 12] Favorites ----------- Power Light Ion Engine Engine Light Ion Engine Propulsion Flight Unit Wheel Wheel Flight Unit Flight Unit Utility Power Shielding Device Terrain Scanner Processor Signal Interpreter Protection Power Shielding Weapon EM Shotgun Energy Gun EM Shotgun Energy Cannon Particle Cannon Launcher Rocket Launcher Build | -11 -10 -10 -9 -9 -9 -8 -8 ------- Run | Yrd Mat Min Mat Min Exi Min Mat Slots Evolved 4 | . . . 2 . . . 2 Power 1 | . . . . . . . 1 Propulsion 2 | . . . 1 . . . 1 Utility 1 | . . . 1 . . . . Weapon . | . . . . . . . . Parts Attached 39 | 3 6 3 1 6 . 9 11 Power 4 | 1 . 1 . . . 2 . Engine 4 | 1 . 1 . . . 2 . Core . | . . . . . . . . Reactor . | . . . . . . . . Propulsion 15 | 2 . 2 1 2 . 6 2 Treads . | . . . . . . . . Leg . | . . . . . . . . Wheel 5 | 2 . . . . . 3 . Hover . | . . . . . . . . Flight 10 | . . 2 1 2 . 3 2 Utility 7 | . 2 . . 2 . 1 2 Device 5 | . 2 . . . . 1 2 Storage . | . . . . . . . . Processor 1 | . . . . 1 . . . Hackware . | . . . . . . . . Protection 1 | . . . . 1 . . . Artifact . | . . . . . . . . Weapon 13 | . 4 . . 2 . . 7 Energy Gun 6 | . 2 . . 1 . . 3 Energy Cannon 2 | . 2 . . . . . . Ballistic Gun . | . . . . . . . . Ballistic Cannon . | . . . . . . . . Launcher 5 | . . . . 1 . . 4 Special Weapon . | . . . . . . . . Impact Weapon . | . . . . . . . . Slashing Weapon . | . . . . . . . . Piercing Weapon . | . . . . . . . . Special Melee Weapon . | . . . . . . . . Unidentified Prototypes . | . . . . . . . . Parts Lost 31 | . 7 . 1 3 . 4 16 Power 3 | . 1 . . . . 1 1 Propulsion 12 | . 2 . . 3 . 2 5 Utility 3 | . 1 . . . . . 2 Weapon 13 | . 3 . 1 . . 1 8 Highest Loss Streak 16 | . 5 . 1 2 . 4 16 To Critical Strikes . | . . . . . . . . Average Backups 3 | 2 3 1 1 2 3 4 4 Power . | . 1 . . . 1 . . Propulsion 1 | . . 1 . . . 2 2 Utility . | . . . . . 1 . . Weapon 1 | 1 1 . 1 1 1 . . Tool/Special . | . . . . . . . . Unused Backups 3 | . . . . . . 1 2 Power . | . . . . . . . . Propulsion 2 | . . . . . . . 2 Utility 1 | . . . . . . 1 . Weapon . | . . . . . . . . Tool/Special . | . . . . . . . . Average Slot Usage (%) 74 | . 76 65 62 54 66 83 71 Engine 10 | . 11 13 11 11 11 11 7 Wheel 9 | . 22 . . . . 13 . Flight 17 | . . 24 33 21 22 16 30 Device 10 | . 19 14 11 6 . 9 15 Processor 6 | . . . . 6 11 11 . Protection 7 | . . . . 4 11 11 9 Energy Gun 8 | . 3 14 7 3 11 11 7 Energy Cannon 2 | . 19 . . . . . . Peak Build Rating 12 | 3 8 5 6 9 8 11 12 Average Rating 8 | 2 6 4 5 6 8 9 10 On Entrance 5 | . 3 2 5 5 8 8 9 Avg Prop Armor Cover (%) . | . . . . . . . . Naked Turns . | . . . . . . . . Heaviest Build 15 | 5 14 6 6 8 7 15 9 Greatest Support 36 | 26 26 8 12 12 8 36 20 Greatest Overweight (x) 3 | . . . . 2 . 3 1 Average Overweight (x) . | . . . . . . . . Largest Inventory Capacity 5 | 5 5 5 5 5 5 5 5 Average Capacity 5 | 5 5 5 5 5 5 5 5 Most Carried 5 | 3 5 4 1 5 4 5 5 Average Carried 3 | 2 3 1 1 3 4 4 4 Final Capacity 5 | 5 5 5 5 5 5 5 5 Final Carried 5 | 3 4 2 1 4 4 5 2 Class Distribution -------------------- 49% | Mutant 38% | Scavenger-Mutant 12% | Scavenger-Sprinter Dominant Class ---------------- Mutant | -10/Materials Mutant | -10/Mines Mutant | -9/Materials Mutant | -9/Mines Mutant | -9/Exiles Scavenger-Mutant | -8/Mines Scavenger-Sprinter | -8/Materials Resources | -11 -10 -10 -9 -9 -9 -8 -8 ----------- Run | Yrd Mat Min Mat Min Exi Min Mat Matter Collected 574 | 198 82 40 . 116 . 82 56 Remotely . | . . . . . . . . Salvage Created 853 | . 248 . . 256 . 249 100 Parts 50 | . 17 . . 11 . 17 5 Haulers Intercepted . | . . . . . . . . Recyclers Shooed 3 | . . . . 1 . 2 . Parts Field Recycled . | . . . . . . . . Retrieved Matter . | . . . . . . . . Parts Self-Destructed . | . . . . . . . . Prevented . | . . . . . . . . Parts Restored . | . . . . . . . . Kills | -11 -10 -10 -9 -9 -9 -8 -8 ------- Run | Yrd Mat Min Mat Min Exi Min Mat Combat Hostiles Destroyed 20 | . 7 . . 2 . 7 4 Guns 7 | . . . . . . 6 1 Cannons 7 | . 7 . . . . . . AOE 5 | . . . . 2 . . 3 Classes Destroyed 8 | . 3 . . 2 . 2 1 Tunneler 1 | . . . . . . 1 . Recycler 4 | . . . . 3 . 1 . Watcher 3 | . 2 . . . . . 1 Swarmer 10 | . 3 . . . . 6 1 Cutter 1 | . . . . . . . 1 Grunt 7 | . 4 . . 1 . . 2 Sentry 2 | . . . . 2 . . . Hunter 1 | . . . . . . 1 . Best Kill Streak 5 | . 5 . . 3 . 3 5 Combat Bots Only 4 | . 2 . . 2 . 3 4 Max Kills in Single Turn 2 | . 1 . . 2 . 2 1 Gunslinging . | . . . . . . . . Exploded 1 | . . . . 1 . . 1 Melee . | . . . . . . . . Uniques/NPCs Destroyed . | . . . . . . . . Combat | -11 -10 -10 -9 -9 -9 -8 -8 -------- Run | Yrd Mat Min Mat Min Exi Min Mat Hostile Shots Fired 272 | . 81 . 13 24 . 36 118 Missed 98 | . 22 . 7 11 . 13 45 Hits 174 | . 59 . 6 13 . 23 73 Melee 9 | . . . . . . . 9 Projectile 165 | . 59 . 6 13 . 23 64 AOE 2 | . . . . . . . 2 Critical Strikes 8 | . 1 . 1 . . 1 5 Damage Taken 2486 | . 772 . 79 172 . 297 1166 Core 994 | . 236 . 27 56 . 120 555 Absorbed by Shields . | . . . . . . . . Redirected to Shielding 35 | . . . . 1 . 17 17 Core Remaining (%) 51 | 100 . 5 . . . 49 . Volleys Fired 95 | . 39 . . 15 . 24 17 Largest 2 | . 2 . . 1 . 1 2 Hottest 128 | . 128 . . 45 . 45 126 Shots Fired 125 | . 67 . . 15 . 24 19 Gun 50 | . 10 . . 9 . 24 7 Cannon 57 | . 57 . . . . . . Launcher 18 | . . . . 6 . . 12 Special . | . . . . . . . . Kinetic . | . . . . . . . . Thermal 73 | . 67 . . . . . 6 Explosive 18 | . . . . 6 . . 12 Electromagnetic 34 | . . . . 9 . 24 1 Robot Hit Streak 14 | . 9 . . 5 . 14 4 Robot Miss Streak 5 | . 3 . . 5 . 3 3 Penetration Max . | . . . . . . . . Secondary Targets . | . . . . . . . . Shots Hit Robots 76 | . 35 . . 10 . 20 11 Core Hits 55 | . 12 . . 16 . 14 13 Critical Kills . | . . . . . . . . Critical Parts Destroyed . | . . . . . . . . Critical Strikes 2 | . 1 . . . . . 1 Burn 2 | . 1 . . . . . 1 Melee Attacks . | . . . . . . . . Impact . | . . . . . . . . Slashing . | . . . . . . . . Piercing . | . . . . . . . . Sneak Attacks . | . . . . . . . . Combat Hostiles . | . . . . . . . . Follow-up Attacks . | . . . . . . . . Damage Inflicted 1900 | . 608 . . 344 . 354 594 Guns 503 | . 80 . . 97 . 262 64 Cannons 528 | . 528 . . . . . . Explosions 862 | . . . . 247 . 85 530 Melee . | . . . . . . . . Ramming 7 | . . . . . . 7 . Kinetic . | . . . . . . . . Thermal 895 | . 608 . . 138 . 85 64 Explosive 639 | . . . . 109 . . 530 Electromagnetic 359 | . . . . 97 . 262 . Impact . | . . . . . . . . Slashing . | . . . . . . . . Piercing . | . . . . . . . . Highest Corruption . | . . . . . . . . Average Corruption . | . . . . . . . . Corruption Purged . | . . . . . . . . Corruption Blocked . | . . . . . . . . Overload Shots . | . . . . . . . . Overflow Damage 6 | . . . . 1 . . 5 Projectiles . | . . . . . . . . Explosions 6 | . . . . 1 . . 5 Melee . | . . . . . . . . Knockbacks . | . . . . . . . . Impact . | . . . . . . . . Kinetic . | . . . . . . . . Secondary . | . . . . . . . . Self-Inflicted Damage 76 | . . . . 33 . 12 31 Shots 5 | . . . . 2 . 1 2 Rammed 3 | . . . . . . 3 . Targets Rammed 3 | . . . . . . 3 . Kicked . | . . . . . . . . Crushed . | . . . . . . . . Highest Temperature 396 | . 396 . 6 11 . 12 111 Average Temperature 127 | . 168 . 6 6 . 8 27 Received Heat Transfer 1050 | . 429 . 54 18 . . 549 Siege Activations . | . . . . . . . . Martial Activations . | . . . . . . . . Shielding Activations . | . . . . . . . . Robots Disrupted . | . . . . . . . . Combat Hostiles . | . . . . . . . . Robots Corrupted 1 | . . . . . . 1 . Combat Hostiles 1 | . . . . . . 1 . Parts Fried 1 | . . . . . . 1 . Impact Corruptions . | . . . . . . . . Robots Melted . | . . . . . . . . Combat Hostiles . | . . . . . . . . Parts Melted . | . . . . . . . . Heat Transferred 1719 | . 1297 . . 100 . 100 222 Parts Sabotaged . | . . . . . . . . Parts Stolen . | . . . . . . . . Parts Stripped . | . . . . . . . . Power Chain Reactions 4 | . . . . 2 . 2 . Alert | -11 -10 -10 -9 -9 -9 -8 -8 ------- Run | Yrd Mat Min Mat Min Exi Min Mat Maximum Alert Level . | . . . . . . . . Low Security (%) 100 | 100 100 100 100 100 . 100 100 Level 1 . | . . . . . . . . Level 2 . | . . . . . . . . Level 3 . | . . . . . . . . Level 4 . | . . . . . . . . Level 5 . | . . . . . . . . High Security . | . . . . . . . . Max Security . | . . . . . . . . Peak Influence 119 | . 114 28 5 119 . 70 96 Initial 28 | . . 28 . . . . . Average 18 | . 42 8 1 40 . 11 6 Influence Increases 927 | . 279 . 5 193 . 186 264 Destroy 0b10 Robot/C 480 | . 140 . . 120 . 140 80 Destroy 0b10 Robot/NC 40 | . 10 . . 15 . 10 5 Destroy Leader 76 | . 24 . . 10 . 30 12 Allied During Kill 20 | . . . . 20 . . . Successful Hack 7 | . . . 5 . . . 2 Disable Machine 60 | . 15 . . . . . 45 Destroy Structure 94 | . . . . 28 . 6 60 Lose Combat Pursuer 150 | . 90 . . . . . 60 Influence Decreases 831 | . 205 74 5 99 94 186 168 Entered New Map 140 | . . 46 . . 94 . . Time Decay 461 | . 135 28 5 80 . 186 27 Lost Part 230 | . 70 . . 19 . . 141 Squads Dispatched 7 | . 2 1 1 . . . 3 Investigation 2 | . . 1 1 . . . . Extermination . | . . . . . . . . Reinforcement 5 | . 2 . . . . . 3 Assault . | . . . . . . . . Garrison . | . . . . . . . . Intercept . | . . . . . . . . Searches Triggered . | . . . . . . . . Construction Impeded 1 | . . . . . . . 1 Haulers Reinforced . | . . . . . . . . Active Scanning Responses . | . . . . . . . . Cargo Convoy Interrupts . | . . . . . . . . Stealth | -11 -10 -10 -9 -9 -9 -8 -8 --------- Run | Yrd Mat Min Mat Min Exi Min Mat Distress Signals 5 | . 3 . . . . . 2 Communications Jammed . | . . . . . . . . Distress Signals . | . . . . . . . . Times Spotted 59 | . 20 . 7 6 . 7 19 Peak Tracking Total 10 | . 7 . 7 4 . 3 10 Tactical Retreats 4 | . 2 . . . . . 2 Traps | -11 -10 -10 -9 -9 -9 -8 -8 ------- Run | Yrd Mat Min Mat Min Exi Min Mat Traps Triggered 1 | . . . 1 . . . . Indirectly . | . . . . . . . . Trap Hack Attempts . | . . . . . . . . Triggered . | . . . . . . . . Disarmed . | . . . . . . . . Reprogrammed . | . . . . . . . . Reused . | . . . . . . . . Traps Extracted . | . . . . . . . . Installed . | . . . . . . . . Triggered . | . . . . . . . . Machines | -11 -10 -10 -9 -9 -9 -8 -8 ---------- Run | Yrd Mat Min Mat Min Exi Min Mat Machines Disabled 5 | . 2 . . . . . 3 Max in Single Turn 1 | . 1 . . . . . 1 Machines Repaired . | . . . . . . . . Machines Dismantled . | . . . . . . . . Machines Sabotaged . | . . . . . . . . Overloaded Fab Kills . | . . . . . . . . Hacking | -11 -10 -10 -9 -9 -9 -8 -8 --------- Run | Yrd Mat Min Mat Min Exi Min Mat Machines Accessed 10 | . 3 1 1 . 1 . 4 Terminals 7 | . 3 . 1 . . . 3 Fabricators . | . . . . . . . . Repair Stations . | . . . . . . . . Recycling Units . | . . . . . . . . Scanalyzers 1 | . . . . . . . 1 Garrison Access . | . . . . . . . . Total Hacks 35 | . 5 1 1 . 23 . 5 Successful 31 | . 2 1 1 . 23 . 4 Failed 4 | . 3 . . . . . 1 Catastrophic 1 | . 1 . . . . . . Database Lockouts . | . . . . . . . . Manual . | . . . . . . . . Terminals 9 | . 5 . 1 . . . 3 Fabricators . | . . . . . . . . Repair Stations . | . . . . . . . . Recycling Units . | . . . . . . . . Scanalyzers 2 | . . . . . . . 2 Garrison Access . | . . . . . . . . Terminal Hacks 29 | . 2 1 1 . 23 . 2 Record 24 | . . . . . 23 . 1 Robot Analysis 1 | . 1 . . . . . . Open Door 1 | . . 1 . . . . . Alert Level 1 | . . . . . . . 1 Locate Traps 1 | . 1 . . . . . . Zone Layout 1 | . . . 1 . . . . Fabricator Hacks . | . . . . . . . . Repair Station Hacks . | . . . . . . . . Recycling Unit Hacks . | . . . . . . . . Scanalyzer 2 | . . . . . . . 2 Retrieve Study 2 | . . . . . . . 2 Garrison Access Hacks . | . . . . . . . . Unauthorized Hacks . | . . . . . . . . Terminals . | . . . . . . . . Fabricators . | . . . . . . . . Repair Stations . | . . . . . . . . Recycling Units . | . . . . . . . . Scanalyzers . | . . . . . . . . Garrison Access . | . . . . . . . . Data Cores Recovered . | . . . . . . . . Used . | . . . . . . . . Hacking Detections 2 | . 1 . . . . . 1 Full Trace Events . | . . . . . . . . Feedback Events . | . . . . . . . . Feedback Blocked . | . . . . . . . . Robot Schematics Acquired . | . . . . . . . . Robots Built . | . . . . . . . . Authchips . | . . . . . . . . Time . | . . . . . . . . Total Robot Build Rating . | . . . . . . . . Part Schematics Acquired . | . . . . . . . . Parts Built . | . . . . . . . . Authchips . | . . . . . . . . Time . | . . . . . . . . Total Part Build Rating . | . . . . . . . . Part Studies Acquired 2 | . . . . . . . 2 Parts Repaired . | . . . . . . . . Time . | . . . . . . . . Parts Recycled . | . . . . . . . . Recycled Matter . | . . . . . . . . Retrieved Matter . | . . . . . . . . Retrieved Components . | . . . . . . . . Parts Scanalyzed . | . . . . . . . . Part Schematics Acquired . | . . . . . . . . Parts Damaged . | . . . . . . . . Bothacking | -11 -10 -10 -9 -9 -9 -8 -8 ------------ Run | Yrd Mat Min Mat Min Exi Min Mat Used RIF Installer . | . . . . . . . . Robots Hacked . | . . . . . . . . Non-combat . | . . . . . . . . Combat . | . . . . . . . . Robot Hacks Applied . | . . . . . . . . Relay Couplers Released . | . . . . . . . . Fabnet Peak Effective % . | . . . . . . . . Robots Rewired . | . . . . . . . . Allies Hacked . | . . . . . . . . Hacks Repelled . | . . . . . . . . Allies | -11 -10 -10 -9 -9 -9 -8 -8 -------- Run | Yrd Mat Min Mat Min Exi Min Mat Total Allies 3 | . . . . 3 . . . Largest Group 3 | . . . . 3 . . . Highest-Rated Group 40 | . . . . 40 . . . Highest-Rated Ally 16 | . . . . 16 . . . Total Orders . | . . . . . . . . Ally Attacks 27 | . . . . 27 . . . Total Damage 183 | . . . . 183 . . . Kills 4 | . . . . 4 . . . Allies Corrupted . | . . . . . . . . Allies Melted . | . . . . . . . . Intel | -11 -10 -10 -9 -9 -9 -8 -8 ------- Run | Yrd Mat Min Mat Min Exi Min Mat Active Infowar (turns) 1521 | . 314 . . . . 878 329 Terrain 1207 | . . . . . . 878 329 Structural 314 | . 314 . . . . . . Robot Analysis Total 1 | . 1 . . . . . . Derelict Logs Recovered 2 | . . 1 . 1 . . . Drone Launches . | . . . . . . . . Drone Recoveries . | . . . . . . . . Exploration | -11 -10 -10 -9 -9 -9 -8 -8 ------------- Run | Yrd Mat Min Mat Min Exi Min Mat Turns Passed 2451 | 54 352 131 42 291 188 1038 355 Spaces Moved 3192 | 56 296 341 119 602 509 1032 237 Core 146 | 12 90 2 . 21 . 14 7 Treads . | . . . . . . . . Legs . | . . . . . . . . Wheels 577 | 44 206 . . . . 327 . Hover . | . . . . . . . . Flight 2469 | . . 339 119 581 509 691 230 Fastest Speed 31 | 50 50 37 34 34 37 34 31 Average Speed 47 | 81 77 37 34 41 37 55 33 Slowest Speed 280 | 90 90 50 34 150 37 280 120 Overloaded Moves . | . . . . . . . . Propulsion Burnouts . | . . . . . . . . Robots Hopped 20 | . . 5 1 9 . 2 3 Potential Cave-ins . | . . . . . . . . Cave-ins Triggered . | . . . . . . . . Exploration Rate (%) 54 | 3 61 63 16 90 80 95 28 Regions Visited 7 Branch Regions 4 Pre-discovered Areas 1 | . . . . . 1 . . Known Exits Taken 3 | . . . . 1 1 1 . Unknown Exits Taken 4 | 1 1 1 1 . . . . Scrap Searched 5 | . . 1 . 2 . 2 . Spaces Dug . | . . . . . . . . Terrain Destroyed 112 | . . . . 40 . 6 66 Melee . | . . . . . . . . Projectile . | . . . . . . . . AOE 112 | . . . . 40 . 6 66 Terrain Rammed . | . . . . . . . . Walls Destroyed . | . . . . . . . . Machines Disabled . | . . . . . . . . Actions | -11 -10 -10 -9 -9 -9 -8 -8 --------- Run | Yrd Mat Min Mat Min Exi Min Mat Total 3961 | 64 349 339 118 620 508 1473 490 Wait 607 | . 1 . . . . 387 219 Move 3146 | 55 295 330 116 584 508 1027 231 Hop 19 | . . 5 1 8 . 2 3 Pick Up 41 | 6 7 1 . 5 . 14 8 Fast Attach 2 | . . . . 2 . . . Attach 37 | 3 6 3 1 4 . 9 11 Detach 1 | . . . . 1 . . . Swap 2 | . 1 . . . . 1 . Drop 8 | . . . . 1 . 6 1 Fire 95 | . 39 . . 15 . 24 17 Melee . | . . . . . . . . Ram 3 | . . . . . . 3 . Kick . | . . . . . . . . Crush . | . . . . . . . . Escape Stasis . | . . . . . . . . Rewire . | . . . . . . . . Trap . | . . . . . . . . Miscellaneous . | . . . . . . . . Route ------- -11/Scrapyard -10/Materials (discovered 3 exits: *Mat x2 / *Min) -10/Mines (discovered 2 exits: *Mat x2) -9/Materials (discovered 2 exits: Mat / [*Min]) -9/Mines (discovered 3 exits: *Mat x2 / *Exi) -9/Exiles (discovered 2 exits: *Min x2) -8/Mines (discovered 2 exits: *Mat x2) -8/Materials History --------- Turn | Location | Event 3 | -11/Scrapyard | Discovered new exit (range 15) 55 | -11/Scrapyard | Entered Materials 189 | -10/Materials | Discovered new exit (range 16) 301 | -10/Materials | Discovered new exit (range 16) 313 | -10/Materials | Build established: Mutant 347 | -10/Materials | Core integrity fell below 50% 368 | -10/Materials | Discovered new exit (range 7) 374 | -10/Materials | Lost 5 parts (1p2n2w) 397 | -10/Materials | Core integrity fell below 20% 407 | -10/Materials | Entered Mines 438 | -10/Mines | Received a Rocket Launcher from a helpful Derelict 466 | -10/Mines | Discovered new exit (range 8) 483 | -10/Mines | Learned 2 Materials zone layouts 512 | -10/Mines | Met a Derelict shopkeep closing up shop 534 | -10/Mines | Discovered new exit (range 5) 538 | -10/Mines | Entered Materials 538 | -9/Materials | Evolved 2 slots: Propulsion x1, Utility x1 539 | -9/Materials | Identified exit to Materials 539 | -9/Materials | Discovered new exit (range 8) 580 | -9/Materials | Entered Mines 599 | -9/Mines | Assisted by bots powering up and referring to "LRC-V3" 604 | -9/Mines | Met a Derelict bent on vengeance 651 | -9/Mines | Found a Scrap Suit stashed away for nefarious purposes 652 | -9/Mines | Found Scrap Suit 703 | -9/Mines | Discovered exit to Materials (range 11) 765 | -9/Mines | Discovered exit to Materials (range 8) 830 | -9/Mines | Identified exit to Exiles 869 | -9/Mines | Deemed a non-threat by the Exiles lab entrance 871 | -9/Mines | Entered Exiles 877 | -9/Exiles | Discovered new exit (range 15) 882 | -9/Exiles | Met 8R-AWN 888 | -9/Exiles | Met EX-HEX 906 | -9/Exiles | Met EX-DEC 909 | -9/Exiles | Learned location of Zion (-6) 927 | -9/Exiles | Discovered new exit (range 12) 987 | -9/Exiles | Visited The Gauntlet 1059 | -9/Exiles | Identified exit to Mines 1059 | -9/Exiles | Entered Mines 1171 | -8/Mines | Lost 4 parts (1p2n1w) 1256 | -8/Mines | Discovered exit to Materials (range 4) 1265 | -8/Mines | Core integrity fell below 50% 1489 | -8/Mines | Build established: Scavenger-Mutant 1847 | -8/Mines | Discovered exit to Materials (range 7) 2097 | -8/Mines | Entered Materials 2097 | -8/Materials | Evolved 2 slots: Power x1, Propulsion x1 2435 | -8/Materials | Core integrity fell below 50% 2447 | -8/Materials | Core integrity fell below 20% 2452 | -8/Materials | Destroyed by Y-45 Defender with Beam Rifle Last Messages --------------- 02440_ The unstable cave ceiling collapses. 02441_ K-01 Serf collects debris. 02441_ U-05 Engineer builds a Wall. 02441_ Repair Station disabled. 02441_ Backup Power III tumbles out of repair station. 02444_ K-01 Serf collects debris. 02444_ Missile Launcher destroyed. 02445_ U-05 Engineer builds a Wall. 02446_ Critical hit (Burn: +37). 02446_ Acquired Missile Launcher. 02447_ K-01 Serf collects debris. 02448_ G-47 Trooper destroyed. 02448_ Material Compactor disabled. 02449_ U-05 Engineer builds a Wall. 02450_ Critical hit (Burn: +37). 02450_ W-25 Informer destroyed. 02450_ Missile Launcher destroyed. 02451_ K-01 Serf collects debris. 02452_ Critical hit (Burn: +37). Map ----- +----------------------------------------------------+ | ???????????????????????????????????????????# # | | ???????????????????????????????????????????# # | | ???????????????????????????????????????????# + | | ???????????????????????????????????#???? ??# # | | ???????????????????????????????????????????# # | | ???????????????????????????????????????????# # | | ??????????????????????????????####?????????# ### | | ???????????????????????????? """""????????# #?### | | ??????????????????????????# ""T""????????# #?#?? | | ????????????????????###### ????????# #???? | | ????????????????????# ?????????# #???# | | ????????????????????# ?????????# #?#?? | | ????????????????????# ! ???????# #???# | | ????????????????????# ???????# #???# | | ????????????????????# k ???????# #???? | | ????????????????????# # ######### #??#? | | ????????????????????# # ##### | | ????????????????????# =% ###T# | | ????????????????????# # * | | ?????????????+????#?# # ######## | | ?????????????# ?????# # #??????# | | ?????????????# #### ## ######??# | | ?????????????# w #+# ##### | | ?????????????# % # | | ?????????????# * g =% # | | ?????????????# % b @ [ "" # | | ????????????????# = "" / | | ??????????# [ g ! [ "" # | | ??????????# g # """"" # | | ??????????# !! # """ " "T | | ??????????# !! "" ]] # !" "" | | ??????????# !! """ ]] ########### | | ??????????# ? R"Y ]] #????????# | | ?????????????? "" ! ##????#???# ##### | | ????????????? ? [ #???#?????# #???? | | ???????????????# #?????????# #???? | | ??????????????####### | ##?????????# #???? | | ??????? +?????????# ???? | | ??????????????######### "T"####?????????+ ???? | | ??????????????????????#######?#??????????# ???? | | ????????????????????#????????????????????#####???? | | ?????????????????????????????????????????????????? | | ?????????????????????????????????????????????????? | | ?????????????????????????????????????????????????? | | | | | | | | | | | | | +----------------------------------------------------+ Best States ------------- Heat Dissipation 38 Energy Generation 12 Energy Capacity 265 Matter Stores 300 Matter Capacity 300 Sight Range 16 Terrain Scan Range 14 Terrain Scan Density 10 Power Shielding 33 Evasion (%) 71 Item Schematics ----------------- None Robot Schematics ------------------ None Fabricated ------------ Nothing Repaired ---------- Nothing Studied --------- Flight Unit | -8/Materials | Hacked Lgt. Ion Engine | -8/Materials | Hacked Alien Tech Used ----------------- None Achievements -------------- Hydra Challenges ------------ None Game ------ Seed ProcessingSuspensionRifle Manual? 0 Play Time 00:31:32 Cumulative 18.6 hours Start 2026.08.28 @ 23:25:17 End 2026.08.29 @ 00:18:32 Sessions 1 Manual Loads 0 Difficulty Rogue Special Mode None Game No. 38 Rogue 21 Adventurer 15 Explorer 2 Win Type - Total 0 Types 0/0/0/0/0/0/0/0/0/0 Lore% 20 Gallery% 19 Achievement% 15 Wizard Run 0 Options --------- Layout 1 ASCII 0 Keyboard 0 Movement Mouse Keybinds 0 Fullscreen 1 Font 24/Smallcaps Map View 50x35 Zoom Use 0% Tactical HUD 1 Map Filters NONE Filters NONE Steam 1 RUN: 691a3c0a-17ab-4c34-99e5-737ebe0143a6